[Event "IV Zicosur Open 2019"]
[Site "Antofagasta"]
[Date "2019.01.05"]
[Round "1"]
[White "Pichot, Alan"]
[Black "Figueroa Bernal, Julia Dennis"]
[Result "1-0"]
[ECO "A30"]
[WhiteElo "2562"]
[BlackElo "1737"]
[Annotator "ChessBase"]
[PlyCount "31"]
[EventDate "2019.01.05"]
[EventType "swiss"]
[EventCountry "CHI"]
[SourceTitle "playchess.com"]
[Source "ChessBase"]
[SourceQuality "1"]
[TimeControl "5400+30"]

1. c4 {[%emt 0:00:00]} c5 {[%emt 0:00:00]} 2. Nf3 {[%emt 0:00:14]} Nf6 {[%emt 0:00:15]} 3. Nc3 {[%emt 0:00:36]} e6 {[%emt 0:01:03]} 4. g3 {[%emt 0:01:02]} Be7 {[%emt 0:01:32]} 5. Bg2 {[%emt 0:00:10]} O-O {[%emt 0:00:24]} 6. d4 {[%emt 0:03:25]} cxd4 {[%emt 0:02:28]} 7. Nxd4 {[%emt 0:00:07]} a6 {[%emt 0:00:07]} 8. O-O {[%emt 0:00:53]} Qc7 {[%emt 0:01:23]} 9. Qd3 {[%emt 0:02:40]} Nc6 {[%emt 0:06:47]} 10. b3 {[%emt 0:02:36]} b6 {[%emt 0:02:57]} 11. Bf4 {[%emt 0:02:18]} e5 {[%emt 0:01:19]} 12. Nf5 {[%emt 0:01:42]} Bb4 {[%emt 0:22:33]} 13. Bg5 {[%emt 0:01:45]} d6 {[%emt 0:04:52]} 14. Bxf6 {[%emt 0:02:33]} Bxc3 {[%emt 0:10:32]} 15. Bxc6 {[%emt 0:00:53]} Bxf5 {[%emt 0:00:40]} 16. Qxf5 {[%emt 0:00:53]} 1-0

[Event "IV Zicosur Open 2019"]
[Site "Antofagasta"]
[Date "2019.01.05"]
[Round "1"]
[White "Castillo Palma, Hernan"]
[Black "Bacallao Alonso, Yusnel"]
[Result "0-1"]
[ECO "E00"]
[WhiteElo "1710"]
[BlackElo "2582"]
[Annotator "ChessBase"]
[PlyCount "76"]
[EventDate "2019.01.05"]
[EventType "swiss"]
[EventCountry "CHI"]
[SourceTitle "playchess.com"]
[Source "ChessBase"]
[SourceQuality "1"]
[TimeControl "5400+30"]

1. d4 {[%emt 0:00:00]} Nf6 {[%emt 0:00:35]} 2. c4 {[%emt 0:00:31]} e6 {[%emt 0:00:12]} 3. a3 {[%emt 0:00:20]} c5 {[%emt 0:00:33]} 4. d5 {[%emt 0:01:08]} exd5 {[%emt 0:00:23]} 5. cxd5 {[%emt 0:00:21]} g6 {[%emt 0:00:13]} 6. Nc3 {[%emt 0:00:42]} Bg7 {[%emt 0:00:07]} 7. e4 {[%emt 0:03:13]} O-O {[%emt 0:01:14]} 8. Bd3 {[%emt 0:00:12]} d6 {[%emt 0:01:51]} 9. Nge2 {[%emt 0:02:18]} Nbd7 {[%emt 0:01:25]} 10. O-O {[%emt 0:03:52]} a6 {[%emt 0:00:20]} 11. Rb1 {[%emt 0:08:00]} Nh5 {[%emt 0:11:39]} 12. f4 {[%emt 0:08:26]} Qc7 {[%emt 0:12:44]} 13. g4 {[%emt 0:12:01]} Nhf6 {[%emt 0:00:11]} 14. Ng3 {[%emt 0:00:46]} c4 {[%emt 0:05:29]} 15. Bc2 {[%emt 0:02:35]} Nc5 {[%emt 0:01:09]} 16. g5 {[%emt 0:08:00]} Nfd7 {[%emt 0:03:18]} 17. Be3 {[%emt 0:05:08]} b5 {[%emt 0:01:53]} 18. h4 {[%emt 0:03:49]} f6 {[%emt 0:02:08]} 19. Kg2 {[%emt 0:03:59]} Rb8 {[%emt 0:03:28]} 20. Bd4 {[%emt 0:07:12]} a5 {[%emt 0:01:24]} 21. Qd2 {[%emt 0:10:24]} b4 {[%emt 0:03:57]} 22. Nce2 {[%emt 0:03:00]} Bb7 {[%emt 0:05:31]} 23. h5 {[%emt 0:04:28]} b3 {[%emt 0:05:04]} 24. Bd1 {[%emt 0:00:07]} Nd3 {[%emt 0:00:48]} 25. Nc3 {[%emt 0:00:41]} N7c5 {[%emt 0:36:54]} 26. hxg6 {[%emt 0:03:25]} hxg6 {[%emt 0:00:00]} 27. Bg4 {[%emt 0:00:36]} fxg5 {[%emt 0:00:00]} 28. Bxg7 {[%emt 0:00:11]} Qxg7 {[%emt 0:00:00]} 29. fxg5 {[%emt 0:01:20]} Qd4 {[%emt 0:00:00]} 30. Nb5 {[%emt 0:02:08]} Qe5 {[%emt 0:00:00]} 31. Qc3 {[%emt 0:03:28]} Qxg5 {[%emt 0:00:00]} 32. Be6+ {[%emt 0:01:01]} Nxe6 {[%emt 0:00:00]} 33. dxe6 {[%emt 0:00:14]} Bxe4+ {[%emt 0:00:00]} 34. Kh3 {[%emt 0:01:11]} Qh6+ {[%emt 0:00:00]} 35. Kg4 {[%emt 0:00:18]} Rf4+ {[%emt 0:00:00]} 36. Rxf4 {[%emt 0:00:15]} Qxf4+ {[%emt 0:00:00]} 37. Kh3 {[%emt 0:00:40]} Qh6+ {[%emt 0:00:00]} 38. Kg4 {[%emt 0:00:18]} Nf2# {[%emt 0:06:30]} 0-1

[Event "IV Zicosur Open 2019"]
[Site "Antofagasta"]
[Date "2019.01.05"]
[Round "1"]
[White "Aranguiz Olave, Emilio Antonio"]
[Black "Cruz, Cristhian"]
[Result "0-1"]
[ECO "A06"]
[WhiteElo "1679"]
[BlackElo "2561"]
[Annotator "ChessBase"]
[PlyCount "64"]
[EventDate "2019.01.05"]
[EventType "swiss"]
[EventCountry "CHI"]
[SourceTitle "playchess.com"]
[Source "ChessBase"]
[SourceQuality "1"]
[TimeControl "5400+30"]

1. b3 {[%emt 0:00:00]} d5 {[%emt 0:00:00]} 2. Bb2 {[%emt 0:00:00]} Bg4 {[%emt 0:00:00]} 3. Nf3 {[%emt 0:00:30]} Bxf3 {[%emt 0:00:02]} 4. gxf3 {[%emt 0:00:05]} Nd7 {[%emt 0:00:27]} 5. e3 {[%emt 0:05:06]} Ngf6 {[%emt 0:00:18]} 6. f4 {[%emt 0:01:44]} e6 {[%emt 0:00:43]} 7. Rg1 {[%emt 0:01:40]} g6 {[%emt 0:00:36]} 8. d3 {[%emt 0:02:10]} Bd6 {[%emt 0:08:30]} 9. Nd2 {[%emt 0:01:34]} Qe7 {[%emt 0:00:14]} 10. Bh3 {[%emt 0:03:53]} O-O-O {[%emt 0:07:50]} 11. Nf3 {[%emt 0:01:04]} Kb8 {[%emt 0:01:36]} 12. Ne5 {[%emt 0:01:33]} Rhf8 {[%emt 0:01:18]} 13. a4 {[%emt 0:01:58]} Ne8 {[%emt 0:06:08]} 14. d4 {[%emt 0:02:46]} c5 {[%emt 0:02:26]} 15. Qe2 {[%emt 0:01:24]} cxd4 {[%emt 0:04:23]} 16. exd4 {[%emt 0:00:12]} Nc7 {[%emt 0:01:17]} 17. a5 {[%emt 0:01:34]} a6 {[%emt 0:01:15]} 18. c4 {[%emt 0:01:36]} Qh4 {[%emt 0:11:31]} 19. Qe3 {[%emt 0:05:07]} Nxe5 {[%emt 0:04:58]} 20. fxe5 {[%emt 0:01:43]} Be7 {[%emt 0:00:38]} 21. Rg4 {[%emt 0:04:59]} Qh5 {[%emt 0:00:05]} 22. Qg3 {[%emt 0:01:36]} g5 {[%emt 0:06:29]} 23. Ba3 {[%emt 0:02:22]} Bxa3 {[%emt 0:00:32]} 24. Rxa3 {[%emt 0:00:07]} h6 {[%emt 0:01:55]} 25. Bf1 {[%emt 0:01:17]} f5 {[%emt 0:03:48]} 26. exf6 {[%emt 0:00:35]} Rxf6 {[%emt 0:00:04]} 27. Ra2 {[%emt 0:02:00]} Rdf8 {[%emt 0:00:43]} 28. Bg2 {[%emt 0:03:03]} Qg6 {[%emt 0:06:12]} 29. Rb2 {[%emt 0:00:58]} Rf5 {[%emt 0:03:05]} 30. h4 {[%emt 0:03:15]} Qg7 {[%emt 0:00:37]} 31. hxg5 {[%emt 0:01:39]} h5 {[%emt 0:00:14]} 32. cxd5 {[%emt 0:11:05]} exd5 {[%emt 0:00:28]} 0-1

[Event "IV Zicosur Open 2019"]
[Site "Antofagasta"]
[Date "2019.01.05"]
[Round "2"]
[White "Alvarez Vargas, German"]
[Black "Pichot, Alan"]
[Result "0-1"]
[ECO "A34"]
[WhiteElo "2009"]
[BlackElo "2581"]
[Annotator "ChessBase"]
[PlyCount "64"]
[EventDate "2019.01.05"]
[EventType "swiss"]
[EventCountry "CHI"]
[SourceTitle "playchess.com"]
[Source "ChessBase"]
[SourceQuality "1"]
[TimeControl "5400+30"]

1. Nf3 {[%emt 0:00:00]} c5 {[%emt 0:00:06]} 2. e3 {[%emt 0:02:02]} g6 {[%emt 0:02:10]} 3. c4 {[%emt 0:03:08]} Bg7 {[%emt 0:01:26]} 4. Nc3 {[%emt 0:02:11]} Nf6 {[%emt 0:00:24]} 5. g3 {[%emt 0:00:25]} d5 {[%emt 0:03:48]} 6. Bg2 {[%emt 0:04:13]} d4 {[%emt 0:01:05]} 7. exd4 {[%emt 0:07:45]} cxd4 {[%emt 0:00:14]} 8. Ne2 {[%emt 0:00:10]} Nc6 {[%emt 0:00:55]} 9. d3 {[%emt 0:00:29]} O-O {[%emt 0:00:34]} 10. O-O {[%emt 0:02:12]} Nd7 {[%emt 0:02:24]} 11. Ne1 {[%emt 0:09:39]} Nc5 {[%emt 0:01:12]} 12. b3 {[%emt 0:04:05]} Bf5 {[%emt 0:03:00]} 13. Ba3 {[%emt 0:09:53]} Qa5 {[%emt 0:01:00]} 14. Bxc5 {[%emt 0:00:10]} Qxc5 {[%emt 0:00:06]} 15. a3 {[%emt 0:02:28]} a5 {[%emt 0:01:50]} 16. Nf3 {[%emt 0:01:42]} b5 {[%emt 0:04:03]} 17. Nh4 {[%emt 0:11:15]} Bd7 {[%emt 0:01:50]} 18. Rc1 {[%emt 0:09:09]} Rfc8 {[%emt 0:02:05]} 19. Ra1 {[%emt 0:13:52]} bxc4 {[%emt 0:02:13]} 20. bxc4 {[%emt 0:00:21]} Rab8 {[%emt 0:00:46]} 21. Qc2 {[%emt 0:01:15]} Qh5 {[%emt 0:11:16]} 22. Nf3 {[%emt 0:04:55]} g5 {[%emt 0:01:09]} 23. h3 {[%emt 0:03:03]} Qg6 {[%emt 0:04:20]} 24. Nd2 {[%emt 0:02:03]} Qh6 {[%emt 0:04:11]} 25. Ne4 {[%emt 0:03:47]} Ne5 {[%emt 0:04:28]} 26. Qd2 {[%emt 0:01:43]} Bxh3 {[%emt 0:01:21]} 27. Qxg5 {[%emt 0:00:25]} Qxg5 {[%emt 0:00:31]} 28. Nxg5 {[%emt 0:00:02]} Bxg2 {[%emt 0:00:23]} 29. Kxg2 {[%emt 0:00:08]} Nxd3 {[%emt 0:00:09]} 30. Rad1 {[%emt 0:01:10]} Nb2 {[%emt 0:01:03]} 31. Rc1 {[%emt 0:01:19]} d3 {[%emt 0:00:21]} 32. Nf4 {[%emt 0:00:27]} d2 {[%emt 0:00:14]} 0-1

[Event "IV Zicosur Open 2019"]
[Site "Antofagasta"]
[Date "2019.01.08"]
[Round "7"]
[White "Martinez Alcantara, Jose Eduardo"]
[Black "Perez Ponsa, Federico"]
[Result "1-0"]
[ECO "E60"]
[WhiteElo "2541"]
[BlackElo "2560"]
[Annotator "ChessBase"]
[PlyCount "23"]
[EventDate "2019.01.05"]
[EventType "swiss"]
[EventCountry "CHI"]
[SourceTitle "playchess.com"]
[Source "ChessBase"]
[SourceQuality "1"]
[TimeControl "5400+30"]

1. c4 {[%emt 0:00:57]} g6 {[%emt 0:00:00]} 2. d4 {[%emt 0:00:39]} Nf6 {[%emt 0:00:00]} 3. Nf3 {[%emt 0:00:08]} Bg7 {[%emt 0:00:03]} 4. g3 {[%emt 0:00:04]} O-O {[%emt 0:00:05]} 5. Bg2 {[%emt 0:00:08]} d6 {[%emt 0:00:07]} 6. O-O {[%emt 0:00:06]} Bf5 {[%emt 0:00:56]} 7. Nh4 {[%emt 0:03:29]} Be4 {[%emt 0:00:56]} 8. Nf3 {[%emt 0:02:24]} Bf5 {[%emt 0:02:07]} 9. Qb3 {[%emt 0:04:11]} Nc6 {[%emt 0:00:29]} 10. Qxb7 {[%emt 0:07:30]} Na5 {[%emt 0:00:10]} 11. Qa6 {[%emt 0:01:37]} c5 {[%emt 0:08:49]} 12. Bd2 {[%emt 0:00:16]} 1-0